bitfinex-derivatives/quotes_ETHF0:USTF0_20230105
["timestamp","ask_amount","ask_price","bid_price","bid_amount"]
[1672892629021,2.5,1254.2,1254.0,17.18444805]
[1672892630283,2.5,1254.2,1254.0,14.17714805]
[1672892630487,2.5,1254.2,1254.0,17.18444805]
[1672892630701,2.5,1254.2,1254.0,14.17714805]
[1672892630904,2.5,1254.2,1254.0,17.18444805]
[1672892631432,2.5,1254.2,1254.0,14.17714805]
[1672892631640,2.5,1254.2,1254.1,1.79041015]
[1672892631850,2.5,1254.2,1254.1,4.29041015]
[1672892632059,4.18524573,1254.3,1254.1,4.29041015]
[1672892632279,11.46500866,1254.4,1254.2,2.5]
[1672892632693,6.68182721,1254.4,1254.2,2.5]
[1672892633644,6.68182721,1254.4,1254.1,7.29771015]
[1672892634167,6.68182721,1254.4,1254.1,4.29041015]
[1672892634377,6.68182721,1254.4,1254.1,7.29771015]
[1672892635012,11.46500866,1254.4,1254.1,7.29771015]
[1672892635958,6.68182721,1254.4,1254.1,7.29771015]
[1672892637532,6.68182721,1254.4,1254.3,2.5]
[1672892638790,6.68182721,1254.4,1254.2,5.5073]
[1672892639006,11.47042718,1254.5,1254.2,7.29771015]
[1672892639211,6.68724573,1254.5,1254.2,7.29771015]
[1672892642687,6.68724573,1254.5,1254.2,4.29041015]
[1672892642899,6.68724573,1254.5,1254.2,4.79771015]
[1672892643210,4.18524573,1254.4,1254.2,3.0073]
[1672892643420,2.5,1254.3,1254.2,3.0073]
[1672892643738,2.5,1254.3,1254.1,4.29041015]
[1672892643938,2.5,1254.3,1254.1,7.29771015]
[1672892650055,2.5,1254.3,1254.1,4.29041015]
[1672892650256,2.5,1254.3,1254.1,7.29771015]
[1672892650995,2.5,1254.3,1254.1,4.79771015]
[1672892651199,2.5,1254.3,1254.1,7.29771015]
[1672892651948,4.18524573,1254.4,1254.1,7.29771015]
[1672892652158,2.5,1254.3,1254.1,4.79771015]
[1672892652360,2.5,1254.3,1254.1,7.29771015]
[1672892655508,2.5,1254.3,1254.1,4.29041015]
[1672892655724,2.5,1254.3,1254.2,5.5073]
[1672892656689,2.5,1254.3,1254.2,2.5]
[1672892656892,2.5,1254.3,1254.2,5.5073]
[1672892657303,2.5,1254.3,1254.2,2.5]
[1672892657518,2.5,1254.3,1254.2,5.5073]
[1672892657839,2.5,1254.3,1254.2,2.5]
[1672892658052,2.5,1254.3,1254.2,5.5073]
[1672892658574,2.5,1254.3,1254.2,2.5]
[1672892658885,2.5,1254.3,1254.2,3.0073]
[1672892659090,2.5,1254.3,1254.2,5.5073]
[1672892659833,2.5,1254.3,1254.2,2.5]
[1672892661093,2.5,1254.3,1254.2,5.5073]
[1672892661509,2.5,1254.3,1254.2,5.50031704]
[1672892661723,2.5,1254.3,1254.2,2.49301704]
[1672892661943,2.5,1254.3,1254.2,5.50031704]
[1672892663302,2.5,1254.3,1254.2,3.0073]
[1672892664145,2.5,1254.3,1254.2,5.5073]
[1672892664461,6.68524573,1254.4,1254.2,5.5073]
[1672892664777,6.68524573,1254.4,1254.3,2.5]
[1672892665516,6.68524573,1254.4,1254.2,5.5073]
[1672892666449,6.68524573,1254.4,1254.2,2.5]
[1672892666660,2.5,1254.3,1254.2,5.5073]
[1672892666874,2.5,1254.3,1254.2,2.5]
[1672892667083,2.5,1254.3,1254.2,5.5073]
[1672892667294,2.5,1254.3,1254.2,2.5]
[1672892667502,2.5,1254.3,1254.2,5.5073]
[1672892669628,6.68524573,1254.4,1254.2,5.5073]
[1672892670139,6.68524573,1254.4,1254.2,2.5]
[1672892670353,2.5,1254.3,1254.2,3.0073]
[1672892670565,2.5,1254.3,1254.2,5.5073]
[1672892671506,2.5,1254.3,1254.2,2.5]
[1672892671717,2.5,1254.3,1254.2,5.5073]
[1672892672763,2.5,1254.3,1254.2,2.5]
[1672892672976,2.5,1254.3,1254.2,5.5073]
[1672892673191,2.5,1254.3,1254.2,2.5]
[1672892673404,2.5,1254.3,1254.2,5.5073]
[1672892673710,2.5,1254.3,1254.2,3.0073]
[1672892675291,2.5,1254.3,1254.1,6.68122037]
[1672892675604,2.5,1254.3,1254.2,3.0073]
[1672892677704,2.5,1254.3,1254.1,4.29041015]
[1672892677917,2.5,1254.3,1254.1,7.29771015]
[1672892678437,2.5,1254.3,1254.1,4.29041015]
[1672892678647,2.5,1254.3,1254.1,7.29771015]
[1672892679280,2.5,1254.3,1254.1,4.29041015]
[1672892679598,2.5,1254.3,1254.1,7.29771015]
[1672892680018,6.68524573,1254.3,1254.1,7.29771015]
[1672892680334,6.68524573,1254.3,1254.1,4.29041015]
[1672892680650,2.5,1254.3,1254.1,7.29771015]
[1672892682222,2.5,1254.3,1254.0,22.15014805]
[1672892682428,6.68524573,1254.3,1254.0,19.75933783]
[1672892682636,6.68524573,1254.3,1254.1,2.5]
[1672892686217,6.68524573,1254.3,1254.0,22.76663783]
[1672892686426,6.68524573,1254.3,1254.1,2.5]
[1672892687791,6.68524573,1254.3,1254.0,11.78633783]
[1672892687998,6.68524573,1254.3,1254.1,2.5]
[1672892691056,6.68524573,1254.3,1254.0,14.79363783]
[1672892691582,6.68524573,1254.3,1254.0,11.78633783]
[1672892691900,6.68524573,1254.3,1254.0,14.79363783]
[1672892692320,6.68524573,1254.3,1254.1,2.5]
[1672892696207,2.5,1254.3,1254.1,2.5]
[1672892696729,6.68524573,1254.3,1254.1,2.5]
[1672892697982,2.5,1254.3,1254.1,2.5]
[1672892698405,6.68524573,1254.3,1254.1,2.5]
[1672892699251,2.5,1254.3,1254.1,2.5]
[1672892699458,6.68524573,1254.3,1254.1,2.5]
[1672892699671,2.5,1254.3,1254.1,2.5]
[1672892699882,6.68524573,1254.3,1254.1,2.5]
[1672892700300,6.68524573,1254.3,1254.0,14.79363783]
[1672892700301,2.5,1254.3,1254.0,14.79363783]
[1672892700514,2.5,1254.3,1254.1,2.5]
[1672892704196,2.5,1254.3,1254.1,3.69374878]
[1672892706303,2.5,1254.3,1254.1,1.19374878]
[1672892706726,2.5,1254.3,1254.1,3.69374878]
[1672892709567,2.5,1254.3,1254.1,5.48415893]
[1672892710821,2.5,1254.3,1254.1,2.98415893]
[1672892711030,2.5,1254.3,1254.1,5.48415893]
[1672892712403,2.5,1254.3,1254.1,8.49145893]
[1672892712929,2.5,1254.3,1254.1,5.48415893]
[1672892713242,2.5,1254.3,1254.1,8.49145893]
[1672892713453,2.5,1254.3,1254.1,5.48415893]
[1672892713974,2.5,1254.3,1254.1,8.49145893]
[1672892714922,6.68524573,1254.3,1254.1,8.49145893]
[1672892715136,2.5,1254.3,1254.1,8.49145893]
[1672892715448,11.46842718,1254.4,1254.1,8.49145893]
[1672892715870,6.68524573,1254.4,1254.2,1.19374878]
[1672892716084,6.68524573,1254.4,1254.3,2.5]
[1672892716508,6.68524573,1254.4,1254.2,3.69374878]
[1672892717030,2.5,1254.3,1254.2,4.20104878]
[1672892722823,2.5,1254.3,1254.2,1.19374878]
[1672892723024,2.5,1254.3,1254.2,4.20104878]
[1672892724811,2.5,1254.3,1254.2,1.19374878]
[1672892725130,2.5,1254.3,1254.2,4.20104878]
[1672892726393,2.5,1254.3,1254.2,1.19374878]
[1672892726907,2.5,1254.3,1254.2,4.20104878]
[1672892730278,2.5,1254.3,1254.2,1.19374878]
[1672892730490,2.5,1254.3,1254.2,4.20104878]
[1672892731220,2.5,1254.3,1254.2,4.19620552]
[1672892731754,2.5,1254.3,1254.2,1.18890552]
[1672892732282,2.5,1254.3,1254.1,4.29041015]
[1672892732694,6.68524573,1254.3,1254.1,1.79041015]
[1672892733012,6.68524573,1254.3,1254.1,4.29041015]
[1672892733225,6.68524573,1254.3,1254.1,1.79041015]
[1672892733539,6.68524573,1254.3,1254.1,4.29041015]
[1672892736784,6.68524573,1254.3,1254.1,1.79041015]
[1672892737637,6.68524573,1254.3,1254.1,4.29041015]
[1672892738159,6.68524573,1254.3,1254.1,2.5]
[1672892739945,6.68524573,1254.3,1254.1,4.29041015]
[1672892741203,2.5,1254.3,1254.1,4.29041015]
[1672892743731,2.5,1254.3,1254.1,7.29771015]
[1672892743940,2.5,1254.3,1254.1,4.29041015]
[1672892744152,2.5,1254.3,1254.1,7.29771015]
[1672892746254,6.68524573,1254.3,1254.1,7.29771015]
[1672892746456,2.5,1254.3,1254.1,7.29771015]
[1672892747829,2.5,1254.3,1254.1,4.29041015]
[1672892748041,2.5,1254.3,1254.1,7.29771015]
[1672892748247,2.5,1254.3,1254.1,4.29041015]
[1672892748453,2.5,1254.3,1254.1,7.29771015]
[1672892750455,6.68524573,1254.3,1254.1,7.29771015]
[1672892750667,2.5,1254.3,1254.1,7.29771015]
[1672892752453,2.5,1254.3,1254.1,4.29041015]
[1672892752650,2.5,1254.3,1254.1,7.29771015]
[1672892752865,6.68524573,1254.3,1254.1,7.29771015]
[1672892753076,2.5,1254.3,1254.1,7.29771015]
[1672892753286,2.49576402,1254.3,1254.1,7.29771015]
[1672892753708,2.49576402,1254.3,1254.1,4.29041015]
[1672892753925,2.49576402,1254.3,1254.1,7.29771015]
[1672892754445,2.49576402,1254.3,1254.1,4.29041015]
[1672892754761,2.49576402,1254.3,1254.1,7.29771015]
[1672892754969,6.68100975,1254.3,1254.1,7.29771015]
[1672892755181,6.68100975,1254.3,1254.1,4.79771015]
[1672892755394,6.68100975,1254.3,1254.1,7.29771015]
[1672892755597,6.68100975,1254.3,1254.1,4.79771015]
[1672892755808,6.68100975,1254.3,1254.1,4.29041015]
[1672892756126,6.68100975,1254.3,1254.1,7.29771015]
[1672892756762,2.49576402,1254.3,1254.1,4.79771015]
[1672892756971,2.49576402,1254.3,1254.1,7.29771015]
[1672892757183,6.68100975,1254.3,1254.1,7.29771015]
[1672892757493,6.68100975,1254.3,1254.1,4.79771015]
[1672892757916,6.68100975,1254.3,1254.1,7.29771015]
[1672892758548,6.68100975,1254.3,1254.1,4.29041015]
[1672892758754,6.68100975,1254.3,1254.1,1.79041015]
[1672892759176,6.68100975,1254.3,1254.1,4.29041015]
[1672892759597,6.68100975,1254.3,1254.1,1.79041015]
[1672892760016,6.68100975,1254.3,1254.1,4.29041015]
[1672892760335,6.68100975,1254.3,1254.1,1.79041015]
[1672892760545,6.68100975,1254.3,1254.1,4.29041015]
[1672892761286,6.68100975,1254.3,1254.1,1.79041015]
[1672892763273,6.68100975,1254.3,1254.1,4.29041015]
[1672892763477,6.68100975,1254.3,1254.1,1.79041015]
[1672892803002,6.68100975,1254.3,1254.1,4.79771015]
[1672892803419,6.68100975,1254.3,1254.1,1.79041015]
[1672892803734,6.68100975,1254.3,1254.1,4.79771015]
[1672892804994,6.68100975,1254.3,1254.1,1.79041015]
[1672892805204,6.68100975,1254.3,1254.1,4.79771015]
[1672892806044,6.68100975,1254.3,1254.1,1.79041015]
[1672892812348,6.68100975,1254.3,1254.0,17.18444805]
[1672892813192,6.68100975,1254.3,1254.1,1.79041015]
[1672892813402,6.68100975,1254.3,1254.1,4.29041015]
[1672892813824,6.68100975,1254.3,1254.0,17.18444805]
[1672892815296,6.68100975,1254.3,1254.0,14.79363783]
[1672892815608,6.18524573,1254.1,1254.0,9.99592768]
[1672892816025,2.0,1254.1,1254.0,9.99592768]
[1672892816757,6.18524573,1254.1,1254.0,9.99592768]
[1672892816963,2.0,1254.1,1254.0,9.99592768]
[1672892829280,2.0,1254.1,1254.0,9.98821294]
[1672892836633,6.18524573,1254.1,1254.0,9.98821294]
[1672892842102,9.19254573,1254.1,1254.0,9.98821294]
[1672892842308,3.0073,1254.1,1254.0,9.98821294]
[1672892843360,5.5073,1254.1,1254.0,9.98821294]
[1672892846412,9.69254573,1254.1,1254.0,9.98821294]
[1672892849146,6.68524573,1254.1,1254.0,9.98821294]
[1672892849459,9.69254573,1254.1,1254.0,9.98821294]
[1672892850614,6.68524573,1254.1,1254.0,9.98821294]
[1672892850933,9.69254573,1254.1,1254.0,9.98821294]
[1672892852080,5.5073,1254.1,1254.0,9.98821294]
[1672892852401,9.69254573,1254.1,1254.0,9.98821294]
[1672892853241,5.5073,1254.1,1254.0,9.98821294]
[1672892853447,2.5,1254.1,1254.0,9.98821294]
[1672892853866,6.68524573,1254.1,1254.0,9.98821294]
[1672892866902,11.46842718,1254.1,1254.0,9.98821294]
[1672892867105,6.68524573,1254.1,1254.0,9.98821294]
[1672892869000,11.46842718,1254.1,1254.0,9.98821294]
[1672892869211,6.68524573,1254.1,1254.0,9.98821294]
[1672892870791,11.46842718,1254.1,1254.0,9.98821294]
[1672892872687,7.28318145,1254.1,1254.0,9.98821294]
[1672892875213,15.6738976,1254.1,1254.0,9.98821294]
[1672892875527,12.6665976,1254.1,1254.0,9.98821294]
[1672892875738,15.6738976,1254.1,1254.0,9.98821294]
[1672892876370,12.6665976,1254.1,1254.0,9.98821294]
[1672892876581,10.29048145,1254.1,1254.0,9.98821294]
[1672892876787,7.28318145,1254.1,1254.0,9.98821294]
[1672892877103,10.29048145,1254.1,1254.0,9.98821294]
[1672892877634,7.28318145,1254.1,1254.0,9.98821294]
[1672892877948,10.29048145,1254.1,1254.0,9.98821294]
[1672892882150,10.28671233,1254.1,1254.0,9.98821294]
[1672892883942,7.27941233,1254.1,1254.0,9.98821294]
[1672892884362,10.28671233,1254.1,1254.0,9.98821294]
[1672892884780,9.68874605,1254.1,1254.0,9.98821294]
[1672892885515,14.4719275,1254.1,1254.0,9.98821294]
[1672892887723,11.4646275,1254.1,1254.0,9.98821294]
[1672892888255,6.68144605,1254.1,1254.0,9.98821294]
[1672892896445,4.18521517,1254.1,1254.0,9.98821294]
[1672892896770,8.96839662,1254.2,1254.0,12.99551294]
[1672892897289,4.18521517,1254.2,1254.0,12.99551294]
[1672892897817,8.96839662,1254.2,1254.0,12.99551294]
[1672892898022,4.18521517,1254.2,1254.0,12.99551294]
[1672892898546,4.18521517,1254.2,1254.0,9.98821294]
[1672892903697,9.47146064,1254.3,1254.1,2.5]
[1672892905170,6.46416064,1254.3,1254.1,2.5]
[1672892905594,1.68097919,1254.3,1254.1,2.5]
[1672892906227,6.46416064,1254.3,1254.0,14.18783005]
[1672892906437,6.46416064,1254.3,1254.0,12.99551294]
[1672892906851,1.68097919,1254.3,1254.0,14.18783005]
[1672892907179,1.68097919,1254.3,1254.0,12.99551294]
[1672892908118,1.68097919,1254.3,1254.0,9.98821294]
[1672892908331,1.68097919,1254.3,1254.0,12.99551294]
[1672892908540,1.68097919,1254.3,1254.0,9.98821294]
[1672892908956,1.68097919,1254.3,1254.0,12.99551294]
[1672892909279,6.46416064,1254.3,1254.0,12.99551294]
[1672892909493,1.68097919,1254.3,1254.0,12.99551294]
[1672892913586,1.68097919,1254.3,1254.0,9.98821294]
[1672892914108,1.68097919,1254.3,1254.0,12.99551294]
[1672892915799,1.68097919,1254.3,1254.0,9.98821294]
[1672892916324,1.68097919,1254.3,1254.0,12.99551294]
[1672892916745,6.46416064,1254.3,1254.0,12.99551294]
[1672892918637,1.68097919,1254.3,1254.0,12.99551294]
[1672892920115,1.68097919,1254.3,1254.0,9.98821294]
[1672892920322,1.68097919,1254.3,1254.0,12.99551294]
[1672892920633,1.68097919,1254.3,1254.0,9.98821294]
[1672892920841,1.68097919,1254.3,1254.0,12.99551294]
[1672892921162,1.68097919,1254.3,1254.0,14.18783005]
[1672892921372,1.68097919,1254.3,1254.0,12.99551294]
[1672892922737,1.68097919,1254.3,1254.0,9.98821294]
[1672892922947,1.68097919,1254.3,1254.0,12.99551294]
[1672892923151,1.68097919,1254.3,1254.0,9.98821294]
[1672892923360,6.46416064,1254.3,1254.0,14.18783005]
[1672892923787,6.46416064,1254.3,1254.0,11.18053005]
[1672892923991,6.46416064,1254.3,1254.0,14.18783005]
[1672892924509,6.46416064,1254.3,1254.0,12.99551294]
[1672892925571,6.46416064,1254.3,1254.0,9.98821294]
[1672892926204,6.46416064,1254.3,1254.0,12.99551294]
[1672892927043,6.46416064,1254.3,1254.0,14.18783005]
[1672892927674,6.46416064,1254.3,1254.0,11.18053005]
[1672892927880,6.46416064,1254.3,1254.0,14.18783005]
[1672892930722,6.46416064,1254.3,1254.0,11.18053005]
[1672892931038,6.46416064,1254.3,1254.0,14.18783005]
[1672892938078,6.46416064,1254.3,1254.0,11.18053005]
[1672892938290,6.46416064,1254.3,1254.0,14.18783005]
[1672892939238,6.46416064,1254.3,1254.0,11.18053005]
[1672892939862,6.46416064,1254.3,1254.0,14.18783005]
[1672892941443,11.84757679,1254.3,1254.0,14.18783005]
[1672892941972,11.84757679,1254.3,1254.0,11.18053005]
[1672892942818,11.84757679,1254.3,1254.0,14.18783005]
[1672892945959,11.84757679,1254.3,1254.0,11.18053005]
[1672892946175,11.84757679,1254.3,1254.0,14.18783005]
[1672892950172,11.84757679,1254.3,1254.0,11.18053005]
[1672892950378,11.84757679,1254.3,1254.0,14.18783005]
[1672892951117,11.84757679,1254.3,1254.0,11.18053005]
[1672892951324,11.84757679,1254.3,1254.0,14.18783005]
[1672892951533,11.84757679,1254.3,1254.0,11.18053005]
[1672892951744,11.84757679,1254.3,1254.0,14.18783005]
[1672892952693,11.84757679,1254.3,1254.0,11.18053005]
[1672892953215,11.84757679,1254.3,1254.0,14.18783005]
[1672892954583,4.78318145,1254.2,1254.0,14.18783005]
[1672892954797,2.5,1254.1,1254.0,11.18053005]
[1672892955209,2.5,1254.1,1254.0,9.98821294]
[1672892973290,2.5,1254.1,1254.0,9.98418183]
[1672892980446,10.29048145,1254.2,1254.0,9.98418183]
[1672892983503,2.5,1254.1,1254.0,9.98418183]
[1672892990111,10.29048145,1254.2,1254.0,9.98418183]
[1672892990751,15.6738976,1254.2,1254.0,9.98418183]
[1672892991172,12.6665976,1254.2,1254.0,9.98418183]
[1672892991383,10.29048145,1254.2,1254.0,9.98418183]
[1672892991593,7.28318145,1254.2,1254.0,9.98418183]
[1672892992441,10.29048145,1254.2,1254.0,9.98418183]
[1672892992645,7.28318145,1254.2,1254.0,9.98418183]
[1672892992855,10.29048145,1254.2,1254.0,9.98418183]
[1672892993172,2.5,1254.1,1254.0,9.98418183]
[1672892997171,7.28318145,1254.1,1254.0,9.98418183]
[1672893002948,15.6738976,1254.2,1254.0,9.98418183]
[1672893005680,2.5,1254.1,1254.0,9.98418183]
[1672893006311,7.28318145,1254.1,1254.0,9.98418183]
[1672893008091,2.5,1254.1,1254.0,9.98418183]
[1672893008830,10.29048145,1254.2,1254.0,9.98418183]
[1672893009255,10.28430638,1254.2,1254.0,9.98418183]
[1672893009460,10.28430638,1254.2,1254.0,12.48418183]
[1672893010199,7.27700638,1254.2,1254.0,12.48418183]
[1672893013033,7.27700638,1254.2,1254.0,9.98418183]
[1672893025961,2.49382493,1254.2,1254.0,9.98418183]
[1672893026590,7.27700638,1254.2,1254.0,9.98418183]
[1672893029009,2.49382493,1254.2,1254.0,9.98418183]
[1672893030805,7.27700638,1254.2,1254.0,9.98418183]
[1672893031316,2.49382493,1254.2,1254.0,9.98418183]
[1672893031847,7.27700638,1254.2,1254.0,9.98418183]
[1672893035630,2.49382493,1254.2,1254.0,9.98418183]
[1672893035945,2.49382493,1254.2,1254.0,11.17649894]
[1672893036151,2.49382493,1254.2,1254.0,9.98418183]
[1672893036581,2.49382493,1254.2,1254.0,11.17649894]
[1672893037208,2.49382493,1254.2,1254.0,14.18379894]
[1672893037628,2.49382493,1254.2,1254.0,12.99148183]
[1672893038357,2.49382493,1254.2,1254.0,11.17649894]
[1672893039099,2.49382493,1254.2,1254.0,14.18379894]
[1672893039722,2.49382493,1254.2,1254.0,11.17649894]
[1672893039933,2.49382493,1254.2,1254.0,14.18379894]
[1672893040673,2.49382493,1254.2,1254.0,11.17649894]
[1672893041305,2.49382493,1254.2,1254.0,14.18379894]
[1672893041724,2.49382493,1254.2,1254.0,11.17649894]
[1672893042040,2.49382493,1254.2,1254.0,14.18379894]
[1672893043621,2.49382493,1254.2,1254.0,12.99148183]
[1672893044243,7.27700638,1254.2,1254.0,12.99148183]
[1672893045405,7.27700638,1254.2,1254.0,9.98418183]
[1672893045618,2.49382493,1254.2,1254.0,11.17649894]
[1672893053388,7.27700638,1254.2,1254.0,11.17649894]
[1672893054656,7.27700638,1254.2,1254.0,9.98418183]
[1672893054865,7.27700638,1254.2,1254.0,11.17649894]
[1672893055913,7.27700638,1254.2,1254.0,9.98418183]
[1672893056113,7.27700638,1254.2,1254.0,11.17649894]
[1672893056546,7.27700638,1254.2,1254.0,9.98418183]
[1672893059382,7.27700638,1254.2,1254.0,11.17649894]
[1672893060115,2.49382493,1254.2,1254.0,11.17649894]
[1672893061372,7.27700638,1254.2,1254.0,11.17649894]
[1672893064319,2.49382493,1254.2,1254.0,12.96690909]
[1672893064531,2.49382493,1254.2,1254.1,6.69961711]
[1672893064742,2.68097919,1254.3,1254.1,2.5]
[1672893065059,7.46416064,1254.3,1254.1,2.5]
[1672893065263,10.47146064,1254.3,1254.1,2.5]
[1672893065998,7.46416064,1254.3,1254.1,2.5]
[1672893066203,10.47146064,1254.3,1254.1,2.5]
[1672893069886,7.46416064,1254.3,1254.1,2.5]
[1672893070408,7.46416064,1254.3,1254.0,14.18379894]
[1672893070624,7.46416064,1254.3,1254.0,11.17649894]
[1672893070835,7.46416064,1254.3,1254.0,14.18379894]
[1672893071042,7.46416064,1254.3,1254.0,11.17649894]
[1672893071248,7.46416064,1254.3,1254.0,14.18379894]
[1672893072722,15.43716064,1254.3,1254.0,11.17649894]
[1672893072935,4.1887,1254.2,1254.0,9.98418183]
[1672893073370,2.5,1254.1,1254.0,9.98418183]
[1672893076301,5.5073,1254.1,1254.0,9.98418183]
[1672893078301,5.5073,1254.1,1254.0,9.97871352]
[1672893078833,7.28318145,1254.2,1254.0,9.97871352]
[1672893079562,2.5,1254.2,1254.0,9.97871352]
[1672893080188,7.28318145,1254.2,1254.0,9.97871352]
[1672893080507,10.29048145,1254.2,1254.0,9.97871352]
[1672893081142,7.28318145,1254.2,1254.0,9.97871352]
[1672893081660,2.5,1254.2,1254.0,9.97871352]
[1672893081977,2.5,1254.2,1254.1,2.5]
[1672893082603,18.44446064,1254.3,1254.1,2.5]
[1672893082813,10.47146064,1254.3,1254.1,2.5]
[1672893084501,7.46416064,1254.3,1254.1,2.5]
[1672893087331,7.46416064,1254.3,1254.0,9.97871352]
[1672893087542,7.46416064,1254.3,1254.1,2.5]
[1672893090591,2.68097919,1254.3,1254.1,2.5]
[1672893091005,7.46416064,1254.3,1254.1,2.5]
[1672893101316,7.46416064,1254.3,1254.0,14.17833063]
[1672893101529,7.46416064,1254.3,1254.1,2.5]
[1672893116979,7.46416064,1254.3,1254.0,14.17833063]
[1672893117502,7.46416064,1254.3,1254.0,12.98601352]
[1672893117712,2.5,1254.1,1254.0,9.97871352]
[1672893120761,2.5,1254.1,1254.0,12.47871352]
[1672893120968,2.5,1254.1,1254.0,9.97871352]
[1672893121392,2.5,1254.1,1254.0,12.47871352]
[1672893121603,10.29048145,1254.2,1254.0,12.47871352]
[1672893124965,15.25618145,1254.2,1254.0,9.97871352]
[1672893125175,2.5,1254.1,1254.0,9.97871352]
[1672893126754,2.5,1254.1,1254.0,12.47871352]
[1672893126961,2.5,1254.1,1254.0,9.97871352]
[1672893127694,2.5,1254.1,1254.0,12.47871352]
[1672893127905,2.5,1254.1,1254.0,9.97871352]
[1672893138943,5.5073,1254.1,1254.0,9.97871352]
[1672893142300,2.5,1254.1,1254.0,9.97871352]
[1672893145054,18.26348145,1254.2,1254.0,9.97871352]
[1672893148836,2.5,1254.1,1254.0,9.97336106]
[1672893152935,18.26348145,1254.2,1254.0,9.97336106]
[1672893155771,15.25618145,1254.2,1254.0,9.97336106]
[1672893157771,18.26348145,1254.2,1254.0,9.97336106]
[1672893158294,15.25618145,1254.2,1254.0,9.97336106]
[1672893158498,18.26348145,1254.2,1254.0,9.97336106]
[1672893159028,2.5,1254.1,1254.0,9.97336106]
[1672893163866,7.28318145,1254.1,1254.0,9.97336106]
[1672893164811,7.27827063,1254.1,1254.0,12.47336106]
[1672893165018,7.27827063,1254.1,1254.0,9.97336106]
[1672893166908,10.28557063,1254.1,1254.0,9.97336106]
[1672893167440,7.27827063,1254.1,1254.0,9.97336106]
[1672893167751,10.28557063,1254.1,1254.0,9.97336106]
[1672893172900,7.27827063,1254.1,1254.0,9.97336106]
[1672893173318,10.28557063,1254.1,1254.0,9.97336106]
[1672893173744,7.27827063,1254.1,1254.0,9.97336106]
[1672893174583,10.28557063,1254.1,1254.0,9.97336106]
[1672893175005,7.27827063,1254.1,1254.0,9.97336106]
[1672893175205,10.28557063,1254.1,1254.0,9.97336106]
[1672893178047,7.27827063,1254.1,1254.0,9.97336106]
[1672893179521,2.49508918,1254.1,1254.0,9.97336106]
[1672893183195,7.27827063,1254.1,1254.0,9.97336106]
[1672893184572,2.49508918,1254.1,1254.0,9.97336106]
[1672893185517,7.27827063,1254.1,1254.0,9.97336106]
[1672893188137,10.28557063,1254.1,1254.0,9.97336106]
[1672893188460,7.27827063,1254.1,1254.0,9.97336106]
[1672893188667,2.49508918,1254.1,1254.0,9.97336106]
[1672893189716,5.50238918,1254.1,1254.0,9.97336106]
[1672893190451,10.28557063,1254.1,1254.0,9.97336106]
[1672893191390,7.27827063,1254.1,1254.0,9.97336106]
[1672893191607,10.28557063,1254.1,1254.0,9.97336106]
[1672893192341,5.50238918,1254.1,1254.0,9.97336106]
[1672893192551,2.49508918,1254.1,1254.0,9.97336106]
[1672893195599,7.27827063,1254.1,1254.0,9.97336106]
[1672893195816,10.28557063,1254.1,1254.0,9.97336106]
[1672893196226,7.27827063,1254.1,1254.0,9.97336106]
[1672893199595,2.49508918,1254.1,1254.0,9.97336106]
[1672893200441,7.27827063,1254.1,1254.0,9.97336106]
[1672893202855,10.28557063,1254.1,1254.0,9.97336106]
[1672893203802,7.27827063,1254.1,1254.0,9.97336106]
[1672893204009,10.28557063,1254.1,1254.0,9.97336106]
[1672893205910,7.27827063,1254.1,1254.0,9.97336106]
[1672893206109,10.28557063,1254.1,1254.0,9.97336106]
[1672893207271,7.27827063,1254.1,1254.0,9.97336106]
[1672893208008,10.28557063,1254.1,1254.0,9.97336106]
[1672893208849,7.27827063,1254.1,1254.0,9.97336106]
[1672893221681,10.28557063,1254.1,1254.0,9.97336106]
[1672893222519,7.27827063,1254.1,1254.0,9.97336106]
[1672893222735,10.28557063,1254.1,1254.0,9.97336106]
[1672893227987,7.27827063,1254.1,1254.0,9.97336106]
[1672893229353,7.27827063,1254.1,1254.0,9.97013933]
[1672893237333,4.78318145,1254.1,1254.0,12.47013933]
[1672893237546,10.1665976,1254.3,1254.0,13.66245644]
[1672893237761,2.5,1254.2,1254.0,9.97013933]
[1672893237969,5.5073,1254.2,1254.0,12.47013933]
[1672893238175,10.29048145,1254.2,1254.0,12.47013933]
[1672893238591,10.29048145,1254.2,1254.0,9.97013933]
[1672893239017,10.473,1254.1,1253.7,2.98272726]
[1672893239229,7.973,1253.9,1253.6,2.98272726]
[1672893239544,2.5,1253.8,1253.6,1.19231711]
[1672893240166,5.5073,1253.8,1253.6,1.19231711]
[1672893243433,5.5073,1253.8,1253.5,5.99002726]
[1672893243751,5.5073,1253.8,1253.5,2.98272726]
[1672893244799,5.5073,1253.8,1253.5,5.48272726]
[1672893245126,5.5073,1253.8,1253.6,1.19231711]
[1672893245430,5.5073,1253.8,1253.7,2.5]
[1672893245632,5.5073,1253.8,1253.6,2.5]
[1672893246167,5.5073,1253.8,1253.5,5.48272726]
[1672893248368,2.5,1253.8,1253.5,5.48272726]
[1672893251425,5.5073,1253.8,1253.5,3.69231711]
[1672893253732,13.4803,1253.8,1253.4,5.99002726]
[1672893253947,3.0073,1253.6,1253.4,3.0073]
[1672893254153,2.5,1253.5,1253.4,3.0073]
[1672893256466,2.5,1253.5,1253.3,6.69961711]
[1672893256669,2.5,1253.5,1253.3,8.49002726]
[1672893256880,2.5,1253.5,1253.3,6.69961711]
[1672893258566,2.5,1253.5,1253.3,4.19961711]
[1672893258776,5.5073,1253.5,1253.2,1.19231711]
[1672893259197,5.5073,1253.5,1253.2,2.98272726]
[1672893259402,5.5073,1253.5,1253.2,1.19231711]
[1672893260881,13.4803,1253.5,1253.2,1.19231711]
[1672893262136,13.4803,1253.5,1253.1,8.49002726]
[1672893262865,10.473,1253.5,1253.1,5.48272726]
[1672893263076,5.5073,1253.5,1253.1,8.49002726]
[1672893263296,5.5073,1253.5,1253.2,3.69231711]
[1672893263505,13.4803,1253.5,1253.2,1.19231711]
[1672893263714,1.1814,1253.4,1253.0,1.19231711]
[1672893263920,1.1814,1253.4,1253.0,2.5]
[1672893264137,12.9803,1253.3,1252.9,16.49002726]
[1672893264347,12.9803,1253.3,1253.0,2.5]
[1672893264558,2.5,1253.2,1253.0,3.69231711]
[1672893264879,2.5,1253.2,1253.0,2.5]
[1672893265301,2.5,1253.2,1253.0,3.69231711]
[1672893265505,2.5,1253.2,1253.0,2.5]
[1672893265933,2.5,1253.2,1252.9,4.19961711]